bitfinex-derivatives/quotes_BNBF0:USTF0_20250406
["timestamp","ask_amount","ask_price","bid_price","bid_amount"]
[1743932633217,0.58047038,589.47,588.76,0.28651268]
[1743932633418,0.58047038,589.46,588.76,0.28651268]
[1743932633714,0.58047038,589.45,588.76,0.28651268]
[1743932633915,0.58047038,589.44,588.76,0.28651268]
[1743932634119,0.58047038,589.43,588.76,0.28651268]
[1743932634319,0.58047038,589.42,588.76,0.28651268]
[1743932634621,0.29527935,589.48,588.76,0.28651268]
[1743932634921,0.29527935,589.48,588.77,1.26919122]
[1743932635119,0.29527935,589.48,588.78,0.28651268]
[1743932635517,0.58047038,589.68,588.77,1.26919122]
[1743932635718,0.58047038,589.67,588.78,0.28650878]
[1743932635922,0.58047038,589.66,588.78,0.28650878]
[1743932636124,0.58047038,589.65,588.78,0.28650878]
[1743932636323,0.58047038,589.64,588.78,0.28650878]
[1743932636519,0.58047038,589.63,588.78,0.28650878]
[1743932636721,0.58047038,589.62,588.78,0.28650878]
[1743932636921,0.58047038,589.61,588.78,0.28650878]
[1743932637126,0.58055498,589.6,588.78,0.28650878]
[1743932637326,0.58055498,589.59,588.63,0.28650878]
[1743932637526,0.58055498,589.58,588.64,0.28650878]
[1743932637726,0.58055498,589.57,588.63,0.28650878]
[1743932637926,0.58055498,589.56,588.64,0.28650878]
[1743932638126,0.58055498,589.55,588.63,0.28650878]
[1743932638427,0.58055498,589.54,588.63,0.28650878]
[1743932638625,0.58055498,589.53,588.63,0.28650878]
[1743932638820,0.33913824,589.73,588.63,0.28650878]
[1743932639024,0.29529564,589.53,588.62,1.26919122]
[1743932639224,0.58060429,589.52,588.63,0.28651004]
[1743932639426,0.58060429,589.51,588.63,0.28651004]
[1743932639627,0.58060429,589.5,588.64,1.26919122]
[1743932639823,0.58060429,589.49,588.65,0.28651004]
[1743932640023,0.58060429,589.48,588.65,0.28651004]
[1743932640224,0.58060429,589.47,588.65,0.28651004]
[1743932640429,0.58060429,589.72,588.65,0.28651004]
[1743932640629,0.29529313,589.48,588.65,0.28651004]
[1743932640828,0.5806399,589.47,588.65,0.28651004]
[1743932641028,0.5806399,589.72,588.65,0.28651004]
[1743932641225,0.29529564,589.48,588.64,1.26919122]
[1743932641430,0.5806399,589.47,588.65,0.28651069]
[1743932641731,0.5806399,589.46,588.65,0.28651069]
[1743932641928,0.5806399,589.45,588.65,0.28651069]
[1743932642127,0.33913824,589.73,588.65,0.28651069]
[1743932642128,0.5806399,589.44,588.65,0.28651069]
[1743932642326,0.33913824,589.73,588.65,0.28651069]
[1743932642327,0.5806399,589.43,588.71,1.26919122]
[1743932642524,0.5806399,589.42,588.72,0.28651069]
[1743932642833,0.5806399,589.41,588.72,0.28651069]
[1743932643029,0.5806399,589.4,588.72,0.28651069]
[1743932643226,0.5806399,589.39,588.72,0.28651069]
[1743932643430,0.5806399,589.38,588.72,0.28651069]
[1743932643631,0.5806399,589.37,588.72,0.28651069]
[1743932643827,0.58064019,589.36,588.72,0.28651069]
[1743932644032,0.29528436,589.48,588.72,0.28651069]
[1743932644232,0.58064451,589.47,588.72,0.28651069]
[1743932644437,0.58064451,589.46,588.72,0.28651069]
[1743932644735,0.58064451,589.45,588.73,0.28651069]
[1743932644935,0.58064451,589.44,588.71,0.28651069]
[1743932645129,0.58064451,589.43,588.74,0.28651069]
[1743932645328,0.58064451,589.42,588.75,0.28651069]
[1743932645530,0.58064451,589.41,588.71,0.28651069]
[1743932645728,0.58064451,589.4,588.72,0.28651069]
[1743932645935,0.58064451,589.39,588.71,0.28651069]
[1743932646130,0.58064451,589.38,588.72,0.28651069]
[1743932646332,0.58064451,589.37,588.71,0.28651069]
[1743932646534,0.58064451,589.36,588.72,0.28651069]
[1743932646833,0.29528561,589.48,588.7,1.26919122]
[1743932647031,0.58071135,589.47,588.71,0.28651036]
[1743932647232,0.58071135,589.46,588.71,0.28651036]
[1743932647434,0.58071135,589.45,588.71,0.28651036]
[1743932647634,0.58071135,589.44,588.71,0.28651036]
[1743932647838,0.58071135,589.43,588.84,1.26919122]
[1743932648038,0.58071135,589.42,588.85,0.28651036]
[1743932648238,0.58071135,589.41,588.85,0.28651036]
[1743932648535,0.58071135,589.4,588.85,0.28651036]
[1743932648738,0.58071135,589.39,588.85,0.28651036]
[1743932649039,0.58071135,589.38,588.85,0.28651036]
[1743932649334,0.58071135,589.37,588.85,0.28651036]
[1743932649538,0.29526807,589.48,588.85,0.28651036]
[1743932649734,0.58074892,589.47,588.85,0.28651036]
[1743932649939,0.58074892,589.46,588.85,0.28651036]
[1743932650141,0.58074892,589.45,588.86,0.28651036]
[1743932650341,0.58074892,589.44,588.85,0.28651036]
[1743932650536,0.58074892,589.43,588.85,0.28651036]
[1743932650739,0.58074892,589.42,588.85,0.28651036]
[1743932650939,0.58074892,589.41,588.85,0.28651036]
[1743932651141,0.58074892,589.4,588.89,1.26919122]
[1743932651342,0.58074892,589.39,588.9,0.28651036]
[1743932651543,0.58074892,589.38,588.9,0.28651036]
[1743932651844,0.58081227,589.37,588.9,0.28651036]
[1743932652143,0.29526181,589.48,588.9,0.28651036]
[1743932652343,0.58085108,589.47,588.9,0.28651036]
[1743932652643,0.58085108,589.46,588.9,0.28651036]
[1743932652843,0.58085108,589.45,588.9,0.28651036]
[1743932653041,0.58085108,589.44,588.9,0.28651036]
[1743932653244,0.58085108,589.43,588.9,0.28651036]
[1743932653440,0.58085108,589.42,588.9,0.28651036]
[1743932653639,0.58085108,589.41,588.9,1.55570158]
[1743932653844,0.58085108,589.4,588.91,0.28651036]
[1743932654044,0.58085108,589.39,588.91,0.28651036]
[1743932654245,0.58085108,589.38,588.91,0.28651036]
[1743932654446,0.58085108,589.37,588.91,0.28651036]
[1743932654647,0.33913824,589.73,588.91,0.28651036]
[1743932654843,0.29526056,589.48,588.91,0.28651036]
[1743932655047,0.58092521,589.47,588.91,0.28651036]
[1743932655347,0.58092521,589.46,588.91,0.28651036]
[1743932655548,0.58092521,589.45,588.91,0.28651036]
[1743932655741,0.58092521,589.44,588.91,0.28651036]
[1743932655945,0.58092521,589.43,588.91,0.28651036]
[1743932656147,0.58092521,589.42,588.9,1.26919122]
[1743932656348,0.58092521,589.41,588.9,1.26919122]
[1743932656548,0.58092521,589.4,588.9,1.26919122]
[1743932656749,0.58092521,589.39,588.9,1.26919122]
[1743932656947,0.58092521,589.38,588.9,1.26919122]
[1743932657243,0.58092521,589.37,588.9,1.26919122]
[1743932657449,0.58092521,589.36,588.9,1.26919122]
[1743932657647,0.58092521,589.35,588.9,1.26919122]
[1743932657845,0.58092521,589.34,588.76,1.26919122]
[1743932658049,0.58092521,589.33,588.76,1.26919122]
[1743932658248,0.58092521,589.32,588.76,1.26919122]
[1743932658446,0.58092521,589.31,588.76,1.26919122]
[1743932658651,0.58092521,589.3,588.76,1.26919122]
[1743932658952,0.29526557,589.46,588.76,1.26919122]
[1743932659147,0.58095715,589.45,588.76,1.26919122]
[1743932659344,0.58095715,589.44,588.76,1.26919122]
[1743932659548,0.58095715,589.43,588.76,1.26919122]
[1743932659748,0.58095715,589.42,588.76,1.26919122]
[1743932659948,0.58095715,589.41,588.77,0.28654114]
[1743932660146,0.58095715,589.4,588.77,0.28654114]
[1743932660347,0.5810089,589.39,588.77,0.28654114]
[1743932660646,0.5810089,589.38,588.77,0.28654114]
[1743932660850,0.5810089,589.37,588.77,0.28654114]
[1743932661145,0.5810089,589.36,588.77,0.28654114]
[1743932661350,0.5810089,589.35,588.77,0.28654114]
[1743932661546,0.5810089,589.34,588.58,0.28654114]
[1743932661749,0.5810089,589.33,588.59,0.28654114]
[1743932661951,0.5810089,589.32,588.6,0.28654114]
[1743932662149,0.58102624,589.31,588.61,0.28654114]
[1743932662348,0.58108947,589.3,588.62,0.28654114]
[1743932662546,0.33913824,589.73,588.63,0.28654114]
[1743932662851,0.89300366,589.72,588.64,0.28654114]
[1743932663150,0.92023523,589.71,588.65,0.28654114]
[1743932663352,0.92024098,589.7,588.66,0.28654114]
[1743932663550,0.92024673,589.69,588.55,0.28654114]
[1743932663751,0.92025248,589.68,588.56,0.58186685]
[1743932663952,0.92031606,589.67,588.57,0.28654114]
[1743932664153,0.92032181,589.66,588.72,1.26919122]
[1743932664450,0.58114331,589.65,588.73,0.28654114]
[1743932664653,0.58114331,589.64,588.73,0.28654114]
[1743932664851,0.58114331,589.63,588.73,0.28654114]
[1743932665051,0.58114331,589.62,588.73,0.28654114]
[1743932665246,0.58114331,589.61,588.73,0.28654114]
[1743932665552,0.58114331,589.6,588.73,0.28654114]
[1743932665749,0.58114331,589.59,588.72,1.26919122]
[1743932665948,0.58114331,589.58,588.73,0.28653419]
[1743932666149,0.58114331,589.57,588.73,0.28653419]
[1743932666347,0.58114331,589.56,588.73,0.28653419]
[1743932666553,0.58114331,589.55,588.75,1.26919122]
[1743932666752,0.58114331,589.54,588.76,0.28653419]
[1743932667052,0.58114331,589.53,588.76,0.28653419]
[1743932667348,0.58114331,589.52,588.76,0.28653419]
[1743932667553,0.58114331,589.51,588.76,0.28653419]
[1743932667755,0.58114331,589.5,588.76,0.28653419]
[1743932668050,0.58114331,589.49,588.76,0.28653419]
[1743932668255,0.58114331,589.48,588.76,0.28653419]
[1743932668455,0.58114331,589.47,588.76,0.28653419]
[1743932668750,0.58114331,589.46,588.76,0.28653419]
[1743932668955,0.58114331,589.45,588.76,1.55572541]
[1743932669254,0.58114331,589.44,588.77,0.28653419]
[1743932669454,0.58118671,589.43,588.77,0.28653419]
[1743932669654,0.58118671,589.42,588.77,0.28653419]
[1743932669954,0.58118671,589.41,588.77,0.28653419]
[1743932670156,0.58118671,589.4,588.77,0.28653419]
[1743932670355,0.58118671,589.39,588.77,0.28653419]
[1743932670556,0.58118671,589.38,588.77,0.28653419]
[1743932670758,0.58118671,589.37,588.78,0.28653427]
[1743932671057,0.58118671,589.36,588.77,0.28653427]
[1743932671252,0.58118671,589.35,588.78,0.28653427]
[1743932671453,0.58118671,589.34,588.79,0.28653556]
[1743932671656,0.58118671,589.33,588.77,0.28653556]
[1743932671957,0.58118671,589.32,588.78,0.28653556]
[1743932672152,0.58118671,589.31,588.77,0.28653556]
[1743932672457,0.58118671,589.3,588.78,0.28653556]
[1743932672657,0.58118671,589.29,588.77,0.28653556]
[1743932672858,0.29533323,589.41,588.78,0.28653556]
[1743932673053,0.29533323,589.41,588.77,0.28653556]
[1743932673253,0.58114074,589.4,588.78,0.28653556]
[1743932673459,0.58114074,589.39,588.77,0.28653556]
[1743932673759,0.58114074,589.38,588.78,0.28653556]
[1743932674054,0.58114074,589.37,588.79,0.28653556]
[1743932674253,0.58114074,589.36,588.71,0.28653556]
[1743932674459,0.58114074,589.35,588.72,0.28653556]
[1743932674658,0.58114074,589.34,588.71,0.28653556]
[1743932674959,0.58112357,589.33,588.72,0.28653556]
[1743932675160,0.58112357,589.32,588.71,0.28653556]
[1743932675354,0.58112357,589.31,588.72,0.28653556]
[1743932675659,0.58112357,589.3,588.73,0.28653856]
[1743932675856,0.58112357,589.29,588.71,0.28653856]
[1743932676061,0.58112357,589.28,588.74,0.28653856]
[1743932676261,0.29533323,589.41,588.7,1.26919122]
[1743932676557,0.58109,589.4,588.71,1.55573304]
[1743932676756,0.58109005,589.39,588.72,0.28654182]
[1743932676958,0.58109005,589.38,588.72,0.28654182]
[1743932677156,0.58109005,589.37,588.72,0.28654182]
[1743932677359,0.58109005,589.36,588.72,0.28654182]
[1743932677653,0.58109005,589.35,588.72,0.28654182]
[1743932677858,0.58109005,589.34,588.72,0.28654182]
[1743932678059,0.58109005,589.33,588.72,0.28654182]
[1743932678259,0.58109005,589.32,588.72,0.28654182]
[1743932678456,0.58109005,589.31,588.72,0.28654182]
[1743932678657,0.58109005,589.3,588.72,0.28654182]
[1743932678857,0.58109005,589.29,588.72,0.28654182]
[1743932679061,0.58109005,589.28,588.72,0.28654182]
[1743932679263,0.29531067,589.41,588.72,0.28654182]
[1743932679462,0.58104073,589.4,588.72,0.28654182]
[1743932679658,0.58104073,589.39,588.72,0.28654182]
[1743932679856,0.58104073,589.38,588.59,0.28654182]
[1743932680057,0.58104073,589.37,588.6,0.28654182]
[1743932680261,0.58104073,589.36,588.59,0.28654182]
[1743932680460,0.58104073,589.35,588.61,0.28654182]
[1743932680761,0.58104073,589.34,588.62,0.28654182]
[1743932680958,0.58104073,589.33,588.59,0.28654182]
[1743932681162,0.58104073,589.32,588.58,1.26919122]
[1743932681359,0.58104073,589.31,588.59,0.28654115]
[1743932681561,0.58104073,589.3,588.59,0.28654115]
[1743932681765,0.58104073,589.29,588.59,0.28654115]
[1743932681966,0.58104073,589.28,588.59,1.55573237]
[1743932682166,0.29532696,589.41,588.6,0.28654115]
[1743932682367,0.58099993,589.4,588.6,0.28654115]
[1743932682567,0.58099993,589.39,588.6,0.28654115]
[1743932682765,0.58099993,589.38,588.6,0.28654115]
[1743932682966,0.58099993,589.37,588.6,0.28654115]
[1743932683261,0.58099993,589.36,588.6,0.28654115]
[1743932683468,0.58099993,589.35,588.6,0.28654115]
[1743932683665,0.58099993,589.34,588.6,0.28654115]
[1743932683864,0.58099993,589.33,588.59,1.26919122]
[1743932684062,0.58099993,589.32,588.6,0.28654158]
[1743932684261,0.58099993,589.31,588.6,0.28654158]
[1743932684461,0.58099993,589.3,588.6,0.28654158]
[1743932684664,0.58099993,589.29,588.6,0.28654158]
[1743932684866,0.29532571,589.41,588.61,1.26919122]
[1743932685063,0.58097094,589.4,588.62,0.28654158]
[1743932685261,0.58097094,589.39,588.62,0.28654158]
[1743932685466,0.58097094,589.38,588.62,0.28654158]
[1743932685666,0.58097094,589.37,588.62,0.28654158]
[1743932685966,0.58097094,589.36,588.62,0.28654158]
[1743932686167,0.58097094,589.35,588.62,0.28654158]
[1743932686368,0.58097094,589.34,588.62,0.28654158]
[1743932686566,0.58097094,589.33,588.72,1.26919122]
[1743932686767,0.58097094,589.32,588.73,0.28654158]
[1743932686963,0.58097094,589.31,588.73,0.28654158]
[1743932687167,0.58097094,589.65,588.73,0.28654158]
[1743932687368,0.58097094,589.64,588.73,0.28654158]
[1743932687565,0.58097094,589.63,588.73,0.28654158]
[1743932687769,0.58097094,589.62,588.73,0.28654158]
[1743932687970,0.58097094,589.61,588.73,0.28654158]
[1743932688167,0.58097094,589.6,588.73,0.28654158]
[1743932688470,0.58097094,589.59,588.73,0.28654158]
[1743932688669,0.58098494,589.58,588.73,0.28654158]
[1743932688867,0.58098494,589.57,588.73,0.28654158]
[1743932689065,0.58098494,589.56,588.73,0.28654158]
[1743932689266,0.58098494,589.55,588.82,1.26919122]
[1743932689467,0.58098494,589.54,588.83,0.28654158]
[1743932689770,0.58099051,589.53,588.82,1.26919122]
[1743932689970,0.58099051,589.52,588.82,1.26919122]
[1743932690171,0.58099051,589.51,588.82,1.26919122]
[1743932690371,0.58099051,589.5,588.82,1.26919122]
[1743932690671,0.58099051,589.49,588.82,1.26919122]
[1743932690871,0.58099051,589.48,588.82,1.26919122]
[1743932691070,0.58099051,589.47,588.82,1.26919122]
[1743932691270,0.58099051,589.46,588.82,1.26919122]
[1743932691572,0.58099051,589.45,588.82,1.26919122]
[1743932691765,0.58099051,589.44,588.82,1.26919122]
[1743932691970,0.58099051,589.43,588.6,1.26919122]
[1743932692166,0.58099051,589.42,588.61,0.28654119]
[1743932692366,0.58099051,589.41,588.61,0.28654119]
[1743932692569,0.58099051,589.4,588.61,0.28654119]
[1743932692869,0.58099051,589.39,588.61,0.28654119]
[1743932693167,0.58099051,589.38,588.61,0.28654119]
[1743932693366,0.58099051,589.37,588.61,0.28654119]
[1743932693566,0.58099051,589.4,588.61,0.28654119]
[1743932693767,0.58099051,589.39,588.62,0.28654137]
[1743932693967,0.58099051,589.38,588.62,0.28654137]
[1743932694170,0.58099051,589.37,588.62,0.28654137]
[1743932694371,0.58099051,589.36,588.62,0.28654137]
[1743932694670,0.58099051,589.35,588.62,0.28654137]
[1743932694871,0.58099051,589.34,588.62,0.28654137]
[1743932695170,0.58099051,589.33,588.62,0.28654137]
[1743932695370,0.58099051,589.32,588.61,1.26919122]
[1743932695567,0.58099051,589.31,588.62,0.2865419]
[1743932695772,0.58099051,589.3,588.62,0.2865419]
[1743932696072,0.58099051,589.29,588.62,0.2865419]
[1743932696272,0.58099051,589.28,588.62,0.2865419]
[1743932696469,0.3391785,589.66,588.62,0.2865419]
[1743932696668,0.58102405,589.65,588.62,0.2865419]
[1743932696873,0.2953232,589.41,588.62,0.2865419]
[1743932697074,0.58102708,589.4,588.56,0.2953232]
[1743932697267,0.58102708,589.39,588.57,0.28654149]
[1743932697470,0.58102708,589.38,588.57,0.28654149]
[1743932697668,0.58102708,589.37,588.57,0.28654149]
[1743932697872,0.58102708,589.36,588.57,0.28654149]
[1743932698069,0.58102708,589.35,588.57,0.28654149]
[1743932698272,0.58102708,589.34,588.57,0.28654149]
[1743932698574,0.58102708,589.33,588.57,0.28654149]
[1743932698769,0.58102708,589.32,588.52,1.26919122]
[1743932698974,0.58102708,589.31,588.53,0.28654764]
[1743932699171,0.58102708,589.3,588.53,0.28654764]
[1743932699376,0.58102708,589.29,588.53,0.28654764]
[1743932699577,0.58102708,589.28,588.53,0.28654764]
[1743932699879,0.29533448,589.41,588.54,0.29537083]
[1743932700070,0.58105688,589.4,588.55,0.28654764]
[1743932700273,0.58105688,589.39,588.54,0.29537083]
[1743932700475,0.58105688,589.38,588.55,0.28654151]
[1743932700672,0.58105688,589.37,588.55,0.28654151]
[1743932700872,0.58105688,589.36,588.55,0.28654151]
[1743932701173,0.58105688,589.35,588.55,0.28654151]
[1743932701375,0.58105688,589.34,588.55,0.28654151]
[1743932701676,0.58105688,589.33,588.7,1.26919122]
[1743932701876,0.29533448,589.41,588.71,0.28654151]
[1743932701877,0.58105688,589.32,588.71,0.28654151]
[1743932702076,0.58106875,589.31,588.71,0.28654151]
[1743932702376,0.58106875,589.3,588.71,0.28654151]
[1743932702576,0.58106875,589.29,588.71,0.28654151]
[1743932702776,0.58106875,589.28,588.71,0.28654151]
[1743932702972,0.29533448,589.41,588.71,0.28654151]
[1743932703176,0.58108234,589.4,588.7,1.26919122]
[1743932703375,0.58108234,589.39,588.71,0.28654169]
[1743932703570,0.58108234,589.38,588.71,0.28654169]
[1743932703775,0.58109973,589.37,588.71,0.28654169]
[1743932703973,0.58109973,589.36,588.71,0.28654169]
[1743932704173,0.58109973,589.35,588.71,0.28654169]
[1743932704372,0.58109973,589.34,588.72,0.28654169]
[1743932704577,0.58109973,589.33,588.69,0.28654169]
[1743932704775,0.3391785,589.66,588.68,1.26919122]
[1743932704776,0.58109973,589.32,588.7,0.28654169]
[1743932704973,0.58109973,589.31,588.7,0.28654169]
[1743932705279,0.58109973,589.3,588.71,0.28654169]
[1743932705474,0.58109973,589.29,588.69,0.28654169]
[1743932705674,0.29535077,589.39,588.69,0.28654169]
[1743932705877,0.58114734,589.38,588.69,0.28654169]
[1743932706075,0.58114734,589.37,588.69,0.28654169]
[1743932706274,0.29535077,589.39,588.69,1.55573291]
[1743932706478,0.29535077,589.39,588.7,0.28654169]
[1743932707479,0.3391785,589.66,588.7,0.28654169]
[1743932708179,0.3391785,589.66,588.69,1.26919122]
[1743932708380,0.3391785,589.66,588.7,0.28655081]
[1743932710179,0.5807615,589.59,588.69,1.26919122]
[1743932710376,0.91998603,589.58,588.69,1.26919122]
[1743932710676,0.91999178,589.57,588.69,1.26919122]
[1743932710875,0.91999754,589.56,588.69,1.26919122]
[1743932711178,0.92000329,589.55,588.32,1.26919122]
[1743932711376,0.92000904,589.54,588.33,0.28662675]
[1743932711577,0.9200148,589.53,588.33,0.28662675]
[1743932711776,0.92002055,589.52,588.34,0.28662678]
[1743932711977,0.92002631,589.51,588.34,0.28662678]
[1743932712177,0.92003206,589.5,588.34,0.28662678]
[1743932712382,0.92003782,589.49,588.34,0.28662678]
[1743932712579,0.92004357,589.48,588.34,0.28662678]
[1743932712780,0.5807615,589.47,588.34,0.28662678]
[1743932712984,0.5807615,589.46,588.34,0.28662678]
[1743932713184,0.5807615,589.45,588.34,0.28662678]
[1743932713381,0.5807615,589.44,588.33,0.29541847]
[1743932713582,0.5807615,589.43,588.34,0.2866265]
[1743932713780,0.5807615,589.42,588.33,0.2866265]
[1743932714084,0.5807615,589.41,588.33,0.2866265]
[1743932714280,0.5807615,589.4,588.33,0.2866265]
[1743932714486,0.5807615,589.39,588.33,0.2866265]
[1743932714686,0.5807615,589.38,588.33,0.2866265]
[1743932714886,0.5807615,589.37,588.33,0.58206127]
[1743932715086,0.5807615,589.36,588.34,0.2866265]
[1743932715291,0.5807615,589.35,588.34,0.2866265]
[1743932715489,0.5807615,589.34,588.34,0.2866265]
[1743932715685,0.5807615,589.33,588.34,0.2866265]
[1743932715985,0.29543477,589.39,588.34,0.2866265]
[1743932716691,0.33928207,589.48,588.34,0.2866265]
[1743932716894,0.33928207,589.48,588.35,0.2866265]
[1743932717095,0.29543477,589.38,588.33,0.29543477]
[1743932717296,0.33928207,589.48,588.34,0.2866265]
[1743932717490,0.33928207,589.48,588.32,0.2866265]
[1743932717793,0.33928207,589.48,588.33,0.2866265]
[1743932717994,0.29534952,589.47,588.32,0.2866265]
[1743932718191,0.33929359,589.46,588.33,0.58197602]
[1743932718390,0.33929359,589.46,588.33,0.29534952]
[1743932718588,0.33929359,589.46,588.34,0.28664745]
[1743932719392,0.33929359,589.46,588.34,1.55583867]
[1743932719592,0.33929359,589.46,588.35,0.28664745]
[1743932719791,0.29543728,589.45,588.35,0.28664745]
[1743932719993,0.63473662,589.45,588.35,0.28664745]
[1743932720792,0.63473662,589.45,588.34,1.26919122]
[1743932721095,0.63473662,589.45,588.35,0.28664806]
[1743932721996,0.63473662,589.45,588.38,1.26919122]
[1743932722191,0.63473662,589.45,588.39,0.28664806]
[1743932722497,0.33929934,589.45,588.39,0.28664806]
[1743932723494,0.33929934,589.45,588.38,1.26919122]
[1743932723699,0.33929934,589.45,588.39,0.28664855]
[1743932723895,0.29536205,589.44,588.39,0.28664855]
[1743932724395,0.63466715,589.44,588.39,0.28664855]
[1743932724800,0.33931085,589.43,588.39,0.28664855]
[1743932725401,0.33931085,589.43,588.36,0.28664855]
[1743932725902,0.29545358,589.42,588.36,0.28664855]
[1743932726102,0.33932237,589.41,588.36,0.28664855]
[1743932727606,0.33932237,589.41,588.29,0.28664855]
[1743932727905,0.33932237,589.41,588.3,0.28664855]
[1743932728203,0.33932237,589.41,588.29,0.28664855]
[1743932728400,0.33932237,589.41,588.3,0.28664855]
[1743932728600,0.33932237,589.41,588.26,1.26919122]
[1743932728601,0.33932237,589.41,588.27,0.28664855]
[1743932728799,0.29546738,589.4,588.28,0.28664855]
[1743932729000,0.33933388,589.39,588.27,0.28664855]
[1743932729199,0.33933388,589.39,588.28,0.28664855]
[1743932729505,0.33933388,589.39,588.29,0.28664855]
[1743932729704,0.33933388,589.39,588.27,0.28664855]
[1743932729905,0.33933388,589.39,588.28,0.58211844]
[1743932730105,0.33933388,589.39,588.29,0.28664855]
[1743932731805,0.33933388,589.39,588.3,0.28664855]
[1743932732005,0.33933388,589.39,583.45,0.01713942]
[1743932732006,0.33933388,589.39,588.18,1.55583977]
[1743932732205,0.33933388,589.39,588.19,0.28664855]
[1743932732806,0.29539088,589.38,588.2,0.29539088]
[1743932733006,0.63473052,589.38,588.21,0.28664855]
[1743932733706,0.63473052,589.38,588.2,0.29539088]
[1743932733911,0.63473052,589.38,588.21,0.28666789]
[1743932734504,0.33933964,589.38,588.21,0.28666789]
[1743932735704,0.29538838,589.37,588.21,0.28666789]
[1743932736509,0.29538838,589.37,588.22,1.26919122]
[1743932737509,0.33933964,589.38,588.22,1.26919122]
[1743932738707,0.29538336,589.37,588.22,1.26919122]
[1743932739106,0.29538336,589.37,588.21,0.58205125]
[1743932740413,0.33933964,589.38,588.21,0.28666789]
[1743932740814,0.2954749,589.36,588.21,0.58214279]
[1743932741209,0.2954749,589.36,588.29,1.26919122]
[1743932743516,0.33933964,589.38,588.29,1.26919122]
[1743932744213,0.33933964,589.38,588.36,1.26919122]
[1743932744818,0.29535453,589.37,588.36,1.26919122]
[1743932745719,0.29535453,589.37,588.41,1.26919122]
[1743932746517,0.33933964,589.38,588.41,1.26919122]
[1743932746919,0.29544104,589.36,588.41,1.26919122]
[1743932748820,0.29544104,589.36,588.44,1.26919122]
[1743932749416,0.33933964,589.38,588.44,1.26919122]
[1743932750821,0.29532069,589.37,588.44,1.26919122]
[1743932751120,0.29532069,589.37,588.34,0.29532069]
[1743932751316,0.29532069,589.37,588.35,0.33993371]
[1743932752522,0.33933964,589.38,588.35,0.33993371]
[1743932753826,0.29531067,589.37,588.35,0.33993371]
[1743932758531,0.33933964,589.38,588.35,0.33993371]
[1743932758830,0.29542975,589.36,588.35,0.33993371]
[1743932761430,0.33933964,589.38,588.35,0.33993371]
[1743932761733,0.29542975,589.35,588.35,0.33993371]
[1743932762235,0.29542975,589.35,588.44,1.26919122]
[1743932764435,0.33933964,589.38,588.51,1.26919122]
[1743932764729,0.29540467,589.34,588.51,1.26919122]
[1743932767435,0.33933964,589.38,588.51,1.26919122]
[1743932767937,0.29530691,589.37,588.51,1.26919122]
[1743932770437,0.33933964,589.38,588.51,1.26919122]
[1743932770942,0.29530691,589.37,588.43,0.29530691]
[1743932772946,0.29530691,589.37,588.44,1.26919122]
[1743932773445,0.33933964,589.38,588.44,1.26919122]
[1743932774746,0.63463778,589.38,588.44,1.26919122]
[1743932776149,0.63463778,589.38,588.43,0.29529814]
[1743932776447,0.33933964,589.38,588.35,0.33993371]
[1743932776743,0.63473805,589.38,588.43,0.29539841]
[1743932777050,0.63473805,589.38,588.35,0.33993371]
[1743932777747,0.63473805,589.38,588.36,0.29540091]
[1743932777948,0.63473805,589.38,588.37,0.33992215]
[1743932779652,0.33933964,589.38,588.37,0.33992215]
[1743932780854,0.634624,589.38,588.37,0.33992215]
[1743932782452,0.33933964,589.38,588.37,0.33992215]
[1743932782855,0.29539966,589.37,588.53,1.26919122]
[1743932785557,0.33933964,589.38,588.53,1.26919122]
[1743932785857,0.29538587,589.36,588.53,1.26919122]
[1743932787358,0.29538587,589.36,588.55,1.26919122]
[1743932788460,0.33933964,589.38,588.55,1.26919122]
[1743932788756,0.29538336,589.35,588.55,1.26919122]
[1743932790763,0.29538336,589.35,588.46,0.29538336]
[1743932791461,0.33933964,589.38,588.37,0.33992215]
[1743932791762,0.33933964,589.38,588.45,0.29541596]
[1743932792063,0.33933964,589.38,588.37,0.33992215]
[1743932792763,0.33933964,589.38,588.38,0.29528937]
[1743932793065,0.29528937,589.37,588.39,0.3399106]
[1743932794463,0.33933964,589.38,588.39,0.3399106]
[1743932795365,0.33933964,589.38,588.47,1.26919122]
[1743932795858,0.29540217,589.36,588.47,1.26919122]
[1743932797467,0.33933964,589.38,588.47,1.26919122]
[1743932797866,0.33933964,589.38,588.48,1.26919122]
[1743932798965,0.29529939,589.37,588.48,1.26919122]
[1743932802262,0.29529939,589.37,588.56,1.26919122]
[1743932803566,0.33933964,589.38,588.56,1.26919122]
[1743932804764,0.33933964,589.38,588.55,1.26919122]
[1743932805066,0.29530942,589.37,588.55,1.26919122]
[1743932806567,0.33933964,589.38,588.55,1.26919122]
[1743932806868,0.29538085,589.36,588.55,1.26919122]
[1743932807463,0.29538085,589.36,588.53,1.26919122]
[1743932809472,0.33933964,589.38,588.53,1.26919122]
[1743932809771,0.33933964,589.38,588.58,1.26919122]
[1743932810773,0.29530315,589.37,588.58,1.26919122]
[1743932812667,0.33933964,589.38,588.39,0.3399106]
[1743932813773,0.29531944,589.37,588.39,0.3399106]
[1743932813977,0.29531944,589.37,588.4,0.29531944]
[1743932815575,0.33933964,589.38,588.39,1.60910182]
[1743932815976,0.29542097,589.36,588.39,1.60910182]
[1743932816977,0.29542097,589.36,588.4,0.29542097]